Cogmind - Beta 10.2 @@@ ROGUE MODE // 2021.07.12 @ 12:58:09 Player: Burgers_Lettuce Result: Self-destructed Performance ------------- Evolutions (1) 500 Regions Visited (2) 400 Robots Destroyed (36) 180 Value Destroyed (875) 875 Prototype IDs (1) 20 Alien Tech Used (0) 0 Bonus (0) 0 TOTAL SCORE: 1975 Bonus ------- None Cogmind --------- Core Integrity 145/400 Matter 151/300 Energy 85/125 System Corruption 3% Temperature Cool (0) Movement Rolling (90) Ox1 Location -9/Materials Parts ------- > --- POWER (1) -------- Light Ion Engine > --- PROPULSION (2) --- Armored Treads Wheel > --- UTILITY (4) ------ Small Storage Unit Weight Redist. System Weight Redist. System Improved Targeting Computer > --- WEAPON (2) ------- Heavy Particle Cannon Heavy Particle Cannon > --- INVENTORY (6) ---- Armored Treads Armored Treads Armored Treads Wheel Beam Rifle Heavy Particle Cannon Peak State ------------ > --- POWER ------------ Light Ion Engine > --- PROPULSION ------- Armored Treads Advanced Treads > --- UTILITY ---------- Small Storage Unit Weight Redist. System Weight Redist. System Improved Targeting Computer > --- WEAPON ----------- Heavy Particle Cannon Heavy Particle Cannon > --- INVENTORY -------- Improved Treads Advanced Treads Wheel Wheel Beam Rifle Heavy Particle Cannon [Rating: 21] Favorites ----------- Power Light Nuclear Core Engine Ion Engine Power Core Light Nuclear Core Propulsion Compact Wheel Treads Improved Treads Wheel Compact Wheel Utility Small Storage Unit Device Weight Redist. System Storage Small Storage Unit Processor Improved Targeting Computer Weapon Assault Rifle Energy Gun Heavy EM Pulse Gun Energy Cannon Ion Cannon Ballistic Gun Assault Rifle Launcher Grenade Launcher Build | -11 -10 -9 ------- Run | Scr Mat Mat Slots Evolved 2 | . . 2 Power . | . . . Propulsion . | . . . Utility 2 | . . 2 Weapon . | . . . Parts Attached 44 | 6 7 31 Power 7 | 1 2 4 Engine 5 | 1 1 3 Core 2 | . 1 1 Reactor . | . . . Propulsion 13 | 2 1 10 Treads 10 | 1 1 8 Leg . | . . . Wheel 3 | 1 . 2 Hover . | . . . Flight . | . . . Utility 7 | 1 1 5 Device 3 | . . 3 Storage 2 | 1 1 . Processor 2 | . . 2 Hackware . | . . . Protection . | . . . Artifact . | . . . Weapon 17 | 2 3 12 Energy Gun 5 | 1 2 2 Energy Cannon 7 | . . 7 Ballistic Gun 2 | 1 . 1 Ballistic Cannon . | . . . Launcher 3 | . 1 2 Special Weapon . | . . . Impact Weapon . | . . . Slashing Weapon . | . . . Piercing Weapon . | . . . Special Melee Weapon . | . . . Unidentified Prototypes 1 | . . 1 Parts Lost 9 | . . 9 Power 1 | . . 1 Propulsion 2 | . . 2 Utility . | . . . Weapon 6 | . . 6 Highest Loss Streak 6 | . . 6 Average Slot Usage (%) 93 | . 94 92 Engine 6 | . 10 2 Core 5 | . 3 8 Treads 13 | . 14 12 Wheel 12 | . 14 9 Device 6 | . . 15 Storage 19 | . 22 14 Processor 3 | . . 8 Energy Gun 11 | . 12 8 Energy Cannon 2 | . . 5 Ballistic Gun 10 | . 14 6 Naked Turns . | . . . Heaviest Build 21 | 13 16 21 Greatest Support 56 | 20 20 56 Greatest Overweight (x) 2 | . . 2 Average Overweight (x) . | . . . Largest Inventory Capacity 6 | 6 6 6 Average Capacity 5 | 5 6 6 Most Carried 6 | 6 6 6 Average Carried 5 | 3 5 5 Final Capacity 6 | 6 6 6 Final Carried 6 | 6 6 6 Class Distribution -------------------- 100% | Mutant Dominant Class ---------------- Mutant | -10/Materials Mutant | -9/Materials Resources | -11 -10 -9 ----------- Run | Scr Mat Mat Matter Collected 676 | 208 212 256 Remotely . | . . . Salvage Created 1197 | . 403 794 Parts 86 | . 30 56 Haulers Intercepted 1 | . . 1 Recyclers Shooed 1 | . . 1 Parts Field Recycled . | . . . Retrieved Matter . | . . . Parts Self-Destructed . | . . . Prevented . | . . . Kills | -11 -10 -9 ------- Run | Scr Mat Mat Combat Hostiles Destroyed 26 | . 10 16 Guns 13 | . 4 9 Cannons 6 | . . 6 AOE 7 | . 6 1 Classes Destroyed 9 | . 4 5 Worker 2 | . . 2 Builder 2 | . . 2 Hauler 1 | . . 1 Recycler 1 | . 1 . Watcher 4 | . 3 1 Swarmer 8 | . 6 2 Grunt 13 | . 4 9 Brawler 1 | . . 1 Sentry 4 | . . 4 Best Kill Streak 7 | . 7 5 Combat Bots Only 6 | . 6 4 Max Kills in Single Turn 3 | . 3 2 Gunslinging . | . . . Exploded 2 | . 2 1 Melee . | . . . Uniques/NPCs Destroyed . | . . . Combat | -11 -10 -9 -------- Run | Scr Mat Mat Damage Taken 1807 | . 203 1604 Core 342 | . 87 255 Absorbed by Shields . | . . . Core Remaining (%) 82 | 100 65 . Volleys Fired 68 | . 20 48 Largest 2 | . 2 2 Hottest 150 | . 65 150 Shots Fired 134 | . 40 94 Gun 100 | . 37 63 Cannon 27 | . . 27 Launcher 7 | . 3 4 Special . | . . . Kinetic 48 | . 20 28 Thermal 27 | . . 27 Explosive 7 | . 3 4 Electromagnetic 52 | . 17 35 Robot Hit Streak 17 | . 4 17 Robot Miss Streak 4 | . 4 2 Penetration Max . | . . . Secondary Targets . | . . . Shots Hit Robots 90 | . 21 69 Core Hits 50 | . 19 31 Critical Hits 1 | . . 1 Critical Kills . | . . . Critical Parts Destroyed 1 | . . 1 Melee Attacks . | . . . Impact . | . . . Slashing . | . . . Piercing . | . . . Sneak Attacks . | . . . Combat Hostiles . | . . . Follow-up Attacks . | . . . Damage Inflicted 2299 | . 605 1694 Guns 1066 | . 264 802 Cannons 403 | . . 403 Explosions 830 | . 341 489 Melee . | . . . Ramming . | . . . Kinetic 361 | . 86 275 Thermal 534 | . 79 455 Explosive 699 | . 262 437 Electromagnetic 705 | . 178 527 Impact . | . . . Slashing . | . . . Piercing . | . . . Highest Corruption 3 | . . 3 Average Corruption 3 | . . 3 Corruption Purged . | . . . Effects 5 | . . 5 Message Errors 1 | . . 1 Matter Fused 2 | . . 2 Data Loss (minor) 1 | . . 1 Targeting Errors 1 | . . 1 Overload Shots . | . . . Overflow Damage 73 | . 10 63 Projectiles 15 | . . 15 Explosions 58 | . 10 48 Melee . | . . . Knockbacks . | . . . Impact . | . . . Kinetic . | . . . Secondary . | . . . Self-Inflicted Damage 106 | . 31 75 Shots 3 | . 1 2 Rammed . | . . . Targets Rammed . | . . . Kicked . | . . . Crushed . | . . . Highest Temperature 426 | . 36 426 Average Temperature 66 | . 13 74 Received Heat Transfer 717 | . 57 660 Effects 5 | . . 5 Energy Bleed 1 | . . 1 Interference 4 | . . 4 Siege Activations . | . . . Robots Corrupted 1 | . . 1 Combat Hostiles . | . . . Parts Fried 2 | . 2 . Impact Corruptions . | . . . Robots Melted . | . . . Combat Hostiles . | . . . Parts Melted . | . . . Heat Transferred 879 | . 100 779 Parts Sabotaged . | . . . Parts Stolen . | . . . Parts Stripped . | . . . Power Chain Reactions 4 | . 2 2 Missiles Intercepted . | . . . Alert | -11 -10 -9 ------- Run | Scr Mat Mat Peak Influence 380 | . 270 380 Initial 31 | . . 31 Average 161 | . 132 232 Maximum Alert Level 1 | . 1 1 Low Security (%) 56 | 100 69 30 Level 1 43 | . 30 69 Level 2 . | . . . Level 3 . | . . . Level 4 . | . . . Level 5 . | . . . High Security . | . . . Max Security . | . . . Squads Dispatched 5 | . 3 2 Investigation 2 | . 2 . Extermination . | . . . Reinforcement 3 | . 1 2 Assault . | . . . Garrison . | . . . Intercept . | . . . Construction Impeded 1 | . . 1 Haulers Reinforced . | . . . Stealth | -11 -10 -9 --------- Run | Scr Mat Mat Distress Signals 1 | . . 1 Communications Jammed . | . . . Distress Signals . | . . . Times Spotted 39 | . 14 25 Peak Tracking Total 8 | . 3 8 Tactical Retreats 2 | . . 2 Traps | -11 -10 -9 ------- Run | Scr Mat Mat Traps Triggered . | . . . Indirectly . | . . . Trap Hack Attempts . | . . . Triggered . | . . . Disarmed . | . . . Reprogrammed . | . . . Reused . | . . . Traps Extracted . | . . . Installed . | . . . Triggered . | . . . Machines | -11 -10 -9 ---------- Run | Scr Mat Mat Machines Disabled 4 | . 2 2 Max in Single Turn 1 | . 1 1 Machines Sabotaged . | . . . Garrisons Compromised . | . . . Overloaded Fab Kills . | . . . Fab Network Shutdowns . | . . . Hacking | -11 -10 -9 --------- Run | Scr Mat Mat Machines Accessed 9 | . 7 2 Terminals 7 | . 5 2 Fabricators . | . . . Repair Stations . | . . . Recycling Units 2 | . 2 . Scanalyzers . | . . . Garrison Access . | . . . Total Hacks 19 | . 15 4 Successful 9 | . 8 1 Failed 10 | . 7 3 Catastrophic 2 | . 1 1 Database Lockouts . | . . . Manual 18 | . 13 5 Terminals 16 | . 12 4 Fabricators . | . . . Repair Stations . | . . . Recycling Units 3 | . 3 . Scanalyzers . | . . . Garrison Access . | . . . Terminal Hacks . | . . . Fabricator Hacks . | . . . Repair Station Hacks . | . . . Recycling Unit Hacks 1 | . 1 . Report Inventory 1 | . 1 . Scanalyzer . | . . . Garrison Access Hacks . | . . . Unauthorized Hacks 8 | . 7 1 Terminals 6 | . 5 1 Botnet 5 | . 4 1 Operators 1 | . 1 . Fabricators . | . . . Repair Stations . | . . . Recycling Units 2 | . 2 . Tunnel 2 | . 2 . Scanalyzers . | . . . Garrison Access . | . . . Data Cores Recovered . | . . . Used . | . . . Hacking Detections 6 | . 4 2 Full Trace Events . | . . . Feedback Events . | . . . Feedback Blocked . | . . . Robot Schematics Acquired . | . . . Robots Built . | . . . Matter . | . . . Time . | . . . Total Robot Build Rating . | . . . Part Schematics Acquired . | . . . Parts Built . | . . . Matter . | . . . Time . | . . . Total Part Build Rating . | . . . Parts Repaired . | . . . Time . | . . . Parts Recycled . | . . . Recycled Matter . | . . . Retrieved Matter . | . . . Retrieved Components . | . . . Parts Scanalyzed . | . . . Part Schematics Acquired . | . . . Parts Damaged . | . . . Bothacking | -11 -10 -9 ------------ Run | Scr Mat Mat Used RIF Installer . | . . . Robots Hacked . | . . . Non-combat . | . . . Combat . | . . . Robot Hacks Applied . | . . . Relay Couplers Released . | . . . Robots Rewired . | . . . Allies Hacked . | . . . Hacks Repelled . | . . . Allies | -11 -10 -9 -------- Run | Scr Mat Mat Total Allies . | . . . Largest Group . | . . . Highest-Rated Group . | . . . Highest-Rated Ally . | . . . Total Orders . | . . . Ally Attacks . | . . . Total Damage . | . . . Kills . | . . . Allies Corrupted . | . . . Allies Melted . | . . . Intel | -11 -10 -9 ------- Run | Scr Mat Mat Robot Analysis Total . | . . . Derelict Logs Recovered . | . . . Drone Launches . | . . . Drone Recoveries . | . . . Exploration | -11 -10 -9 ------------- Run | Scr Mat Mat Turns Passed 1625 | 109 890 626 Spaces Moved 1014 | 58 670 286 Core 5 | 2 . 3 Treads 168 | 53 58 57 Legs . | . . . Wheels 841 | 3 612 226 Hover . | . . . Flight . | . . . Fastest Speed 50 | 50 100 80 Average Speed 107 | 153 105 102 Slowest Speed 160 | 160 160 160 Overloaded Moves . | . . . Propulsion Burnouts . | . . . Robots Hopped . | . . . Cave-ins Triggered . | . . . Exploration Rate (%) 38 | 4 87 25 Regions Visited 2 Branch Regions . Pre-discovered Areas 2 | . 2 . Known Exits Taken . | . . . Unknown Exits Taken 2 | 1 1 . Scrap Searched . | . . . Spaces Dug . | . . . Terrain Destroyed 53 | . 15 38 Melee . | . . . Projectile 7 | . . 7 AOE 46 | . 15 31 Terrain Rammed . | . . . Walls Destroyed . | . . . Machines Disabled . | . . . Actions | -11 -10 -9 --------- Run | Scr Mat Mat Total 1414 | 75 815 524 Wait 247 | 6 109 132 Move 1012 | 57 669 286 Hop . | . . . Pick Up 17 | 6 3 8 Fast Attach 25 | 6 4 15 Attach 8 | . . 8 Detach 4 | . . 4 Swap 11 | . 3 8 Drop 22 | . 7 15 Fire 68 | . 20 48 Melee . | . . . Ram . | . . . Kick . | . . . Crush . | . . . Escape Stasis . | . . . Rewire . | . . . Trap . | . . . Miscellaneous . | . . . Route ------- -11/Scrapyard -10/Materials (discovered 3 exits: *Mat x2 / [*Min]) -9/Materials (discovered 2 exits: [*Min] / [*Sto]) History --------- Turn | Location | Event 16 | -11/Scrapyard | Discovered new exit (range 15) 110 | -11/Scrapyard | Entered Materials 227 | -10/Materials | Discovered new exit (range 4) 311 | -10/Materials | Build established: Mutant 372 | -10/Materials | Discovered new exit (range 10) 517 | -10/Materials | Discovered new exit (range 11) 1000 | -10/Materials | Entered another Materials area 1000 | -9/Materials | Evolved 2 slots: Utility x2 1000 | -9/Materials | Discovered new exit (range 15) 1066 | -9/Materials | Discovered new exit (range 13) 1537 | -9/Materials | Core integrity fell below 50% 1579 | -9/Materials | Lost 6 parts (1p5w) 1626 | -9/Materials | Self-destructed Last Messages --------------- 01581_ K-01 Serf collects debris. 01585_ Overheating: System interference. 01585_ Hvy. Particle Cannon temporarily disabled. 01588_ K-01 Serf collects debris. 01590_ Dropped Adv. Treads. 01592_ K-01 Serf collects debris. 01597_ Dropped Arm. Treads. 01599_ K-01 Serf collects debris. 01602_ Acquired Adv. Treads. 01606_ K-01 Serf collects debris. 01607_ Dropped Imp. Treads. 01607_ Dropped Adv. Treads. 01610_ K-01 Serf collects debris. 01612_ Acquired Arm. Treads. 01612_ R-06 Scavenger collects Heat Sink. 01614_ Acquired Adv. Treads. 01616_ R-06 Scavenger collects Aluminum Leg. 01617_ Dropped Adv. Treads. 01620_ R-06 Scavenger collects Ion Engine. 01620_ Acquired Arm. Treads. Map ----- +----------------------------------------------------+ | ?????????????????# #??###??????# | | ????????????????## ####???????????# | | ???????????? #####??????????# | | ???????????? = ]]#??????????##### | | ????????????? % #??????????????? | | ?????????????##+## [ *#??????????????? | | ?????????????????###+###### **#??????????????? | | ??????????????????????????# !!#??????????????? | | ??????????????????????????# !!#??????????????? | | ??????????????????????????# #####?????######???? | | ??????????????????????????# #?????????# / #???? | | ??????????????????????????# #???#####?# =#???? | | ???????????????????######## ## ## ## #???? | | ???????????????????# !%= ###% ""#???? | | ???????????????????# *% = =/! ""#???? | | ???????????????????# ###= T"#???? | | ???????????????????# ######### # ### ""#???? | | ??????????????????## #???????????# #??# ""#???? | | ??????????????????## #???????????# #??# #???? | | ??????????????????## r##??????????# #??######???? | | ????????????###+### % ###????????# #???????????? | | ????????# a #####?????? ???????????? | | ????????# % %k[%*#?????? ???????????? | | ????????# %*== #?????? ???????????? | | ????????? ####### [%= #?????? ##???????????? | | ????????? ????????##+####@==#????? ?????????????? | | ?????????????????? # =#????? ?????????????? | | ??????????????# ????# #????? ?????????????? | | ??????????????#[????????#####????? ?????????????? | | ????????????????????????????????? ?????????????? | | ????????????????????????????????? ?????????????? | | ????????????????????????????????? ?????????????? | | ????????????????????????????????? ??????????????? | | ?????????????????????????????????? ??????????????? | | ?????????????????????????????????????????????????? | | ?????????????????????????????????????????????????? | | ?????????????????????????????????????????????????? | | ?????????????????????????????????????????????????? | | ?????????????????????????????????????????????????? | | ?????????????????????????????????????????????????? | | ?????????????????????????????????????????????????? | | ?????????????????????????????????????????????????? | | ?????????????????????????????????????????????????? | | ?????????????????????????????????????????????????? | | ?????????????????????????????????????????????????? | | ?????????????????????????????????????????????????? | | ?????????????????????????????????????????????????? | | ?????????????????????????????????????????????????? | | ?????????????????????????????????????????????????? | | ?????????????????????????????????????????????????? | +----------------------------------------------------+ Best States ------------- Heat Dissipation 28 Energy Generation 14 Energy Capacity 450 Matter Stores 300 Matter Capacity 300 Sight Range 16 Terrain Scan Density 85 Additional Mass Support 12 Evasion (%) 44 Targeting Accuracy 6 Recoil Reduction 2 Item Schematics ----------------- None Robot Schematics ------------------ None Fabricated ------------ Nothing Alien Tech Used ----------------- None Achievements -------------- None Challenges ------------ None Game ------ Seed SiegeArmorProcessor Manual? 0 Play Time 00:42:30 Cumulative 17.2 hours Start 2021.07.11 @ 18:36:02 End 2021.07.12 @ 12:58:09 Sessions 7 Manual Loads 0 Difficulty Rogue Special Mode None Game No. 17 Rogue 17 Adventurer 0 Explorer 0 Win Type - Total 0 Types 0/0/0/0/0/0/0/0/0 Lore% 9 Gallery% 19 Achievement% 19 Wizard Run 0 Options --------- ASCII 0 Keyboard 1 Movement Numpad Keybinds 0 Fullscreen 2 Font 36/X11 Map View 76x50 Tactical HUD 1 Map Filters NONE Filters NONE Steam 1 RUN: 519be0fa-4f79-4523-ae9f-2debaa171860